Cogmind - Beta 12 X1 @@@ ROGUE MODE // 2022.07.09 @ 21:46:55 Player: snuf Result: Self-destructed Performance ------------- Evolutions (1) 500 Regions Visited (4) 800 Robots Destroyed (17) 85 Value Destroyed (435) 435 Prototype IDs (0) 0 Alien Tech Used (0) 0 Bonus (0) 0 TOTAL SCORE: 1820 Bonus ------- None Cogmind --------- Core Integrity 215/400 Matter 266/400 Energy 100/100 System Corruption 0% Temperature Cool (1) Movement Rolling (130) Ox2 Location -9/Storage Parts ------- > --- POWER (1) -------- (None) > --- PROPULSION (2) --- Improved Treads Compact Wheel > --- UTILITY (4) ------ Large Storage Unit Medium Matter Pod Medium Armor Plating Medium Armor Plating > --- WEAPON (2) ------- Light Assault Rifle Light Assault Rifle > --- INVENTORY (15) --- Light Treads Compact Wheel Medium Armor Plating Medium Armor Plating Light Assault Rifle Grenade Launcher Peak State ------------ > --- POWER ------------ Ion Engine > --- PROPULSION ------- Improved Treads Compact Wheel > --- UTILITY ---------- Large Storage Unit Medium Matter Pod Medium Armor Plating Medium Armor Plating > --- WEAPON ----------- Light Assault Rifle Light Assault Rifle > --- INVENTORY -------- Light Treads Compact Wheel Compact Wheel Light Assault Rifle Grenade Launcher [Rating: 12] Favorites ----------- Power Light Ion Engine Engine Light Ion Engine Propulsion Aluminum Leg Treads Improved Treads Leg Aluminum Leg Wheel Compact Wheel Utility Large Storage Unit Device Heat Sink Storage Large Storage Unit Protection Medium Armor Plating Weapon Assault Rifle Ballistic Gun Assault Rifle Launcher Grenade Launcher Build | -11 -10 -10 -9 -9 ------- Run | Scr Mat Min Mat Sto Slots Evolved 2 | . . . 2 . Power . | . . . . . Propulsion . | . . . . . Utility 2 | . . . 2 . Weapon . | . . . . . Parts Attached 18 | . 1 . 10 7 Power 3 | . . . 3 . Engine 3 | . . . 3 . Core . | . . . . . Reactor . | . . . . . Propulsion 4 | . . . 3 1 Treads 2 | . . . 2 . Leg . | . . . . . Wheel 2 | . . . 1 1 Hover . | . . . . . Flight . | . . . . . Utility 5 | . 1 . 2 2 Device 1 | . 1 . . . Storage 2 | . . . 2 . Processor . | . . . . . Hackware . | . . . . . Protection 2 | . . . . 2 Artifact . | . . . . . Weapon 6 | . . . 2 4 Energy Gun . | . . . . . Energy Cannon . | . . . . . Ballistic Gun 4 | . . . 1 3 Ballistic Cannon . | . . . . . Launcher 2 | . . . 1 1 Special Weapon . | . . . . . Impact Weapon . | . . . . . Slashing Weapon . | . . . . . Piercing Weapon . | . . . . . Special Melee Weapon . | . . . . . Unidentified Prototypes . | . . . . . Parts Lost 7 | . . . 5 2 Power 3 | . . . 2 1 Propulsion 1 | . . . . 1 Utility 1 | . . . 1 . Weapon 2 | . . . 2 . Highest Loss Streak 4 | . . . 4 2 To Critical Strikes . | . . . . . Average Slot Usage (%) 91 | . 88 100 85 95 Engine 11 | . 14 14 11 10 Treads 7 | . . . 10 11 Leg 9 | . 28 28 1 . Wheel 7 | . . . 10 10 Device 7 | . 3 14 10 . Storage 18 | . 14 14 20 22 Protection 4 | . . . . 18 Ballistic Gun 23 | . 28 28 21 20 Naked Turns . | . . . . . Heaviest Build 45 | 11 12 12 32 45 Greatest Support 20 | 20 20 20 20 16 Greatest Overweight (x) 2 | . . . 1 2 Average Overweight (x) . | . . . . 1 Largest Inventory Capacity 15 | . 8 8 15 15 Average Capacity 12 | . 8 8 14 15 Most Carried 8 | . 8 8 8 7 Average Carried 6 | . 6 8 6 6 Final Capacity 15 | 8 8 8 15 15 Final Carried 8 | 6 8 8 6 6 Class Distribution -------------------- 100% | Mutant Dominant Class ---------------- Mutant | -10/Materials Mutant | -10/Mines Mutant | -9/Materials Mutant | -9/Storage Resources | -11 -10 -10 -9 -9 ----------- Run | Scr Mat Min Mat Sto Matter Collected 588 | 200 28 23 337 . Remotely . | . . . . . Salvage Created 600 | . 104 . 496 . Parts 39 | . 2 . 37 . Haulers Intercepted . | . . . . . Recyclers Shooed . | . . . . . Parts Field Recycled . | . . . . . Retrieved Matter . | . . . . . Parts Self-Destructed . | . . . . . Prevented . | . . . . . Kills | -11 -10 -10 -9 -9 ------- Run | Scr Mat Min Mat Sto Combat Hostiles Destroyed 13 | . 2 . 11 . Guns 11 | . 2 . 9 . AOE 2 | . . . 2 . Classes Destroyed 7 | . 1 . 6 . Worker 1 | . . . 1 . Builder 1 | . . . 1 . Recycler 1 | . . . 1 . Watcher 1 | . . . 1 . Swarmer 3 | . . . 3 . Grunt 9 | . 2 . 7 . Sentry 1 | . . . 1 . Best Kill Streak 5 | . 2 . 5 . Combat Bots Only 3 | . 2 . 3 . Max Kills in Single Turn 3 | . 1 . 3 . Gunslinging . | . . . . . Exploded 2 | . . . 2 . Melee . | . . . . . Uniques/NPCs Destroyed . | . . . . . Combat | -11 -10 -10 -9 -9 -------- Run | Scr Mat Min Mat Sto Damage Taken 1036 | . 119 . 629 288 Core 209 | . 24 . 106 79 Absorbed by Shields . | . . . . . Core Remaining (%) 95 | 100 . 90 . . Volleys Fired 53 | . 7 . 34 12 Largest 2 | . 2 . 2 2 Hottest 40 | . 40 . 40 40 Shots Fired 104 | . 14 . 67 23 Gun 102 | . 14 . 66 22 Cannon . | . . . . . Launcher 2 | . . . 1 1 Special . | . . . . . Kinetic 102 | . 14 . 66 22 Thermal . | . . . . . Explosive 2 | . . . 1 1 Electromagnetic . | . . . . . Robot Hit Streak 18 | . 7 . 18 9 Robot Miss Streak 5 | . 1 . 2 5 Penetration Max . | . . . . . Secondary Targets 1 | . 1 . . . Max Gunslinging Chain 1 | . 1 . . . Shots Hit Robots 79 | . 12 . 52 15 Core Hits 37 | . 6 . 28 3 Critical Kills . | . . . . . Critical Parts Destroyed . | . . . . . Critical Strikes . | . . . . . Melee Attacks . | . . . . . Impact . | . . . . . Slashing . | . . . . . Piercing . | . . . . . Sneak Attacks . | . . . . . Combat Hostiles . | . . . . . Follow-up Attacks . | . . . . . Damage Inflicted 1003 | . 122 . 765 116 Guns 861 | . 122 . 623 116 Cannons . | . . . . . Explosions 142 | . . . 142 . Melee . | . . . . . Ramming . | . . . . . Kinetic 861 | . 122 . 623 116 Thermal . | . . . . . Explosive 142 | . . . 142 . Electromagnetic . | . . . . . Impact . | . . . . . Slashing . | . . . . . Piercing . | . . . . . Highest Corruption 1 | . 1 1 . . Average Corruption 1 | . 1 1 . . Corruption Purged . | . . . . . Corruption Blocked . | . . . . . Effects 4 | . 2 2 . . Message Errors 1 | . . 1 . . Matter Fused 1 | . . 1 . . Data Loss (minor) 2 | . 2 . . . Overload Shots . | . . . . . Overflow Damage . | . . . . . Projectiles . | . . . . . Explosions . | . . . . . Melee . | . . . . . Knockbacks . | . . . . . Impact . | . . . . . Kinetic . | . . . . . Secondary . | . . . . . Self-Inflicted Damage 64 | . . . 32 32 Shots 2 | . . . 1 1 Rammed . | . . . . . Targets Rammed . | . . . . . Kicked . | . . . . . Crushed . | . . . . . Highest Temperature 18 | . 16 . 7 18 Average Temperature 5 | . 6 . 7 5 Received Heat Transfer 396 | . 63 . 315 18 Siege Activations . | . . . . . Robots Corrupted . | . . . . . Combat Hostiles . | . . . . . Parts Fried . | . . . . . Impact Corruptions . | . . . . . Robots Melted . | . . . . . Combat Hostiles . | . . . . . Parts Melted . | . . . . . Heat Transferred . | . . . . . Parts Sabotaged . | . . . . . Parts Stolen . | . . . . . Parts Stripped . | . . . . . Power Chain Reactions . | . . . . . Missiles Intercepted . | . . . . . Alert | -11 -10 -10 -9 -9 ------- Run | Scr Mat Min Mat Sto Peak Influence 253 | . 70 27 253 99 Initial 39 | . . 27 10 39 Average 78 | . 19 27 132 60 Maximum Alert Level 1 | . . . 1 . Low Security (%) 80 | . 100 100 52 100 Level 1 19 | . . . 47 . Level 2 . | . . . . . Level 3 . | . . . . . Level 4 . | . . . . . Level 5 . | . . . . . High Security . | . . . . . Max Security . | . . . . . Squads Dispatched 1 | . . . 1 . Investigation . | . . . . . Extermination . | . . . . . Reinforcement 1 | . . . 1 . Assault . | . . . . . Garrison . | . . . . . Intercept . | . . . . . Searches Triggered . | . . . . . Construction Impeded . | . . . . . Haulers Reinforced . | . . . . . Active Scanning Responses . | . . . . . Cargo Convoy Interrupts . | . . . . . Stealth | -11 -10 -10 -9 -9 --------- Run | Scr Mat Min Mat Sto Distress Signals 2 | . 1 . 1 . Communications Jammed . | . . . . . Distress Signals . | . . . . . Times Spotted 22 | . 3 . 15 4 Peak Tracking Total 6 | . 3 . 4 6 Tactical Retreats . | . . . . . Traps | -11 -10 -10 -9 -9 ------- Run | Scr Mat Min Mat Sto Traps Triggered 2 | . 1 . . 1 Indirectly . | . . . . . Trap Hack Attempts . | . . . . . Triggered . | . . . . . Disarmed . | . . . . . Reprogrammed . | . . . . . Reused . | . . . . . Traps Extracted . | . . . . . Installed . | . . . . . Triggered . | . . . . . Machines | -11 -10 -10 -9 -9 ---------- Run | Scr Mat Min Mat Sto Machines Disabled . | . . . . . Max in Single Turn . | . . . . . Machines Sabotaged . | . . . . . Garrisons Compromised . | . . . . . Overloaded Fab Kills . | . . . . . Hacking | -11 -10 -10 -9 -9 --------- Run | Scr Mat Min Mat Sto Machines Accessed 9 | . 1 . 3 5 Terminals 8 | . 1 . 2 5 Fabricators . | . . . . . Repair Stations 1 | . . . 1 . Recycling Units . | . . . . . Scanalyzers . | . . . . . Garrison Access . | . . . . . Total Hacks 16 | . 3 . 4 9 Successful 9 | . 3 . 2 4 Failed 7 | . . . 2 5 Catastrophic 1 | . . . . 1 Database Lockouts . | . . . . . Manual 2 | . 2 . . . Terminals 14 | . 3 . 2 9 Fabricators . | . . . . . Repair Stations 2 | . . . 2 . Recycling Units . | . . . . . Scanalyzers . | . . . . . Garrison Access . | . . . . . Terminal Hacks 6 | . 1 . 1 4 Open Door 1 | . . . . 1 Locate Traps 2 | . . . . 2 Registered Components 1 | . . . . 1 Zone Layout 2 | . 1 . 1 . Fabricator Hacks . | . . . . . Repair Station Hacks 1 | . . . 1 . Scan Component 1 | . . . 1 . Recycling Unit Hacks . | . . . . . Scanalyzer . | . . . . . Garrison Access Hacks . | . . . . . Unauthorized Hacks 2 | . 2 . . . Terminals 2 | . 2 . . . Botnet 1 | . 1 . . . Operators 1 | . 1 . . . Fabricators . | . . . . . Repair Stations . | . . . . . Recycling Units . | . . . . . Scanalyzers . | . . . . . Garrison Access . | . . . . . Data Cores Recovered . | . . . . . Used . | . . . . . Hacking Detections 8 | . 1 . 3 4 Full Trace Events . | . . . . . Feedback Events . | . . . . . Feedback Blocked . | . . . . . Robot Schematics Acquired . | . . . . . Robots Built . | . . . . . Authchips . | . . . . . Time . | . . . . . Total Robot Build Rating . | . . . . . Part Schematics Acquired . | . . . . . Parts Built . | . . . . . Authchips . | . . . . . Time . | . . . . . Total Part Build Rating . | . . . . . Parts Repaired . | . . . . . Time . | . . . . . Parts Recycled . | . . . . . Recycled Matter . | . . . . . Retrieved Matter . | . . . . . Retrieved Components . | . . . . . Parts Scanalyzed . | . . . . . Part Schematics Acquired . | . . . . . Parts Damaged . | . . . . . Bothacking | -11 -10 -10 -9 -9 ------------ Run | Scr Mat Min Mat Sto Used RIF Installer . | . . . . . Robots Hacked . | . . . . . Non-combat . | . . . . . Combat . | . . . . . Robot Hacks Applied . | . . . . . Relay Couplers Released . | . . . . . Fabnet Peak Effective % . | . . . . . Robots Rewired . | . . . . . Allies Hacked . | . . . . . Hacks Repelled . | . . . . . Allies | -11 -10 -10 -9 -9 -------- Run | Scr Mat Min Mat Sto Total Allies . | . . . . . Largest Group . | . . . . . Highest-Rated Group . | . . . . . Highest-Rated Ally . | . . . . . Total Orders . | . . . . . Ally Attacks . | . . . . . Total Damage . | . . . . . Kills . | . . . . . Allies Corrupted . | . . . . . Allies Melted . | . . . . . Intel | -11 -10 -10 -9 -9 ------- Run | Scr Mat Min Mat Sto Robot Analysis Total . | . . . . . Derelict Logs Recovered . | . . . . . Drone Launches . | . . . . . Drone Recoveries . | . . . . . Exploration | -11 -10 -10 -9 -9 ------------- Run | Scr Mat Min Mat Sto Turns Passed 999 | . 143 183 413 260 Spaces Moved 627 | 1 96 153 214 163 Core . | . . . . . Treads 19 | . . . 19 . Legs 260 | 1 96 153 10 . Wheels 348 | . . . 185 163 Hover . | . . . . . Flight . | . . . . . Fastest Speed 115 | 120 120 120 115 115 Average Speed 124 | 120 120 120 127 127 Slowest Speed 240 | 120 120 120 240 130 Overloaded Moves . | . . . . . Propulsion Burnouts . | . . . . . Robots Hopped . | . . . . . Cave-ins Triggered . | . . . . . Exploration Rate (%) 23 | 3 25 32 26 30 Regions Visited 4 Branch Regions 2 Pre-discovered Areas . | . . . . . Known Exits Taken . | . . . . . Unknown Exits Taken 4 | 1 1 1 1 . Scrap Searched 1 | . . 1 . . Spaces Dug 9 | . . . . 9 Terrain Destroyed 17 | . . . 8 9 Melee . | . . . . . Projectile . | . . . . . AOE 17 | . . . 8 9 Terrain Rammed . | . . . . . Walls Destroyed . | . . . . . Machines Disabled . | . . . . . Actions | -11 -10 -10 -9 -9 --------- Run | Scr Mat Min Mat Sto Total 743 | . 110 152 287 194 Wait 26 | . 5 . 19 2 Move 623 | . 95 152 213 163 Hop . | . . . . . Pick Up 9 | . 2 . 5 2 Fast Attach 6 | . 1 . 3 2 Attach 6 | . . . 4 2 Detach . | . . . . . Swap 6 | . . . 3 3 Drop 6 | . . . 6 . Fire 53 | . 7 . 34 12 Melee . | . . . . . Ram . | . . . . . Kick . | . . . . . Crush . | . . . . . Escape Stasis 8 | . . . . 8 Rewire . | . . . . . Trap . | . . . . . Miscellaneous . | . . . . . Route ------- -11/Scrapyard -10/Materials -10/Mines -9/Materials (discovered 2 exits: [*Min] / *Sto) -9/Storage History --------- Turn | Location | Event 1 | -11/Scrapyard | Discovered new exit (range 0) 1 | -11/Scrapyard | Entered Materials 121 | -10/Materials | Discovered new exit (range 12) 144 | -10/Materials | Entered Mines 309 | -10/Mines | Build established: Mutant 317 | -10/Mines | Discovered new exit (range 7) 327 | -10/Mines | Entered Materials 327 | -9/Materials | Evolved 2 slots: Utility x2 672 | -9/Materials | Discovered new exit (range 10) 701 | -9/Materials | Discovered new exit (range 16) 740 | -9/Materials | Entered Storage 767 | -9/Storage | Lost 4 parts (1p1u2w) 1000 | -9/Storage | Self-destructed Last Messages --------------- 00938_ U-05 Engineer builds a Wall. 00938_ U-05 Engineer lays Concrete. 00940_ U-05 Engineer builds a Wall. 00942_ U-05 Engineer lays Concrete. 00949_ Connecting with Terminal... >>Traps(Locate) Found 8 traps in 2 arrays: 2x Explosive Trap 6x Alarm Trap Map updated. >>Inventory(Components) Retrieving component inventory records... Found 3 registered component stockpiles: ACXEZGAN73: Disposable Heat Sink SZJX5PG9ZV: Field Recycling Unit JLTJGV35F8: Terrain Scan Processor Downloaded coordinate data. 00957_ U-05 Engineer builds a Wall. 00989_ Com. Wheel destroyed. 00999_ Ion Engine destroyed. Map ----- +----------------------------------------------------+ | ???????????????????????????# # # !!!!#? | | ?????????????????????????### """" # # #? | | ?????????????????????????#"" """" # + #? | | ?????????????????????????#"T """" # ##T######? | | ?????????????????????????#"" """" # ########?? | | ?????????????????????????### # # ?? | | ???????????????????????????# # # """"" ? | | ???????????????????????????########## # """"" # | | ???????????????????????????# ! # # """"" # | | ?????????????????#?????????# + + # | | ????????????????## ???####?# [! # # """"" # | | ????????????????# ? #?# * # # """"" # | | ???????^^^^^^???? """ #?# + #= """"" # | | ????????????????? """ "?# ?# # # | | ?????????????????? """ ??# ??# ####" "##? | | ?????????????????? ??# ??# #??#"T"#?? | | ??????????????????? !!! ???# ???# #??#"""#?? | | ??????????????????? !!! ???####"Y???# #??#####?? | | ????????????????????!!!???????#"????# #????????? | | ???????????????????? ????????###### #????????? | | ??????###### #####+##+############## #######??? | | ???? ^ #??? | | ???? ^ ##### #??? | | ???? #???# #??? | | ??????############+##+############## ###??# #??? | | ????????????????# Ygl@##????###### #?##+###? | | ????????????????# """ """ "#????????#T #?# #? | | ????????????????# """ """ T#????????##"""#?# #? | | ????????????????# """ """ "#???????????????# #? | | ????????????????# """ """ ##???????????????# #? | | ????????????????# """ """g#????????????????# #? | | ?????????????????? #????????????????# #? | | ?????????????????? #????????????????# #? | | ???????????????????########????????????????# #? | | ???????????????????????????????????????????# #? | | ???????????????????????????????????????????######? | | ?????????????????????????????????????????????????? | | ?????????????????????????????????????????????????? | | ?????????????????????????????????????????????????? | | ?????????????????????????????????????????????????? | | ?????????????????????????????????????????????????? | | ?????????????????????????????????????????????????? | | ?????????????????????????????????????????????????? | | ?????????????????????????????????????????????????? | | ?????????????????????????????????????????????????? | | ?????????????????????????????????????????????????? | | ?????????????????????????????????????????????????? | | ?????????????????????????????????????????????????? | | ?????????????????????????????????????????????????? | | ?????????????????????????????????????????????????? | +----------------------------------------------------+ Best States ------------- Heat Dissipation 38 Energy Generation 10 Energy Capacity 250 Matter Stores 400 Matter Capacity 400 Sight Range 16 Terrain Scan Density 10 Armor Coverage 450 Evasion (%) 55 Recoil Reduction 1 Item Schematics ----------------- None Robot Schematics ------------------ None Fabricated ------------ Nothing Alien Tech Used ----------------- None Achievements -------------- None Challenges ------------ None Game ------ Seed ReactiveGuidanceCharger Manual? 0 Play Time 00:12:56 Cumulative 202.4 hours Start 2022.07.09 @ 21:25:48 End 2022.07.09 @ 21:46:55 Sessions 1 Manual Loads 0 Difficulty Rogue Special Mode None Game No. 136 Rogue 136 Adventurer 0 Explorer 0 Win Type - Total 1 Types 0/0/0/1/0/0/0/0/0 Lore% 28 Gallery% 52 Achievement% 50 Wizard Run 0 Options --------- ASCII 0 Keyboard 1 Movement Vi Keybinds 0 Fullscreen 1 Font 18/TerminusBold Map View 76x50 Tactical HUD 1 Map Filters NONE Filters NONE Steam 1 RUN: 03f42c5a-d7a2-48fd-8fa7-08d79779332a